bitfinex/quotes_SOLUSD_20250106
["timestamp","ask_amount","ask_price","bid_price","bid_amount"]
[1736186402219,2.28,219.08,219.02,8.8224888]
[1736186402618,20.0,219.06,219.02,8.8224888]
[1736186402851,2.28,219.05,219.02,8.8224888]
[1736186403340,23.776884,219.02,218.9,1.5605]
[1736186403542,8.8224888,218.95,218.9,1.5605]
[1736186403749,2.28,218.94,218.9,1.5605]
[1736186404254,8.8224888,218.93,218.86,8.8224888]
[1736186404749,11.1024888,218.94,218.87,8.8224888]
[1736186405043,16.06069096,218.94,218.87,13.78069096]
[1736186405847,13.78069096,218.93,218.86,13.78069096]
[1736186406047,16.06069096,218.94,218.87,13.78069096]
[1736186406543,13.78069096,218.92,218.85,13.78069096]
[1736186406852,13.78069096,218.9,218.84,1.5035]
[1736186407749,13.78069096,218.9,218.84,15.28419096]
[1736186408049,13.78069096,218.93,218.86,13.78069096]
[1736186408262,13.78069096,218.98,218.91,13.78069096]
[1736186408623,2.28,218.97,218.92,13.78069096]
[1736186408838,2.28,218.97,218.93,13.78069096]
[1736186409036,2.28,218.97,218.92,13.78069096]
[1736186410151,11.4108,219.09,218.96,13.78069096]
[1736186410334,13.78069096,219.02,218.95,13.78069096]
[1736186410653,13.78069096,219.01,218.94,13.78069096]
[1736186410854,2.28,219.0,218.94,13.78069096]
[1736186411428,2.28,219.0,218.95,13.78069096]
[1736186411631,2.28,219.0,218.96,13.78069096]
[1736186412438,2.28,219.0,218.97,13.78069096]
[1736186412867,13.78069096,219.05,218.99,13.78069096]
[1736186413033,2.28,219.04,218.99,13.78069096]
[1736186413232,2.28,219.04,219.0,13.78069096]
[1736186413669,2.28,219.05,219.0,13.78069096]
[1736186415567,2.28,219.05,218.99,13.78069096]
[1736186416678,13.78069096,219.02,218.96,13.78069096]
[1736186416839,13.78069096,219.03,218.97,13.78069096]
[1736186418370,37.55757496,219.04,218.97,13.78069096]
[1736186418676,37.55757496,219.04,218.98,13.78069096]
[1736186419264,13.78069096,218.99,218.92,13.78069096]
[1736186419563,11.415,219.01,218.84,7.5253]
[1736186419564,23.776884,219.0,218.94,13.78069096]
[1736186420430,37.55757496,219.0,218.93,13.78069096]
[1736186420635,13.78069096,218.99,218.92,13.78069096]
[1736186421049,13.78069096,218.98,218.92,13.78069096]
[1736186421254,2.28,218.97,218.92,13.78069096]
[1736186421457,16.06069096,218.97,218.91,13.78069096]
[1736186421842,13.78069096,218.97,218.91,13.78069096]
[1736186422050,2.28,218.96,218.91,13.78069096]
[1736186422447,2.28,218.96,218.92,13.78069096]
[1736186424154,2.28,218.96,218.91,13.78069096]
[1736186424743,2.28,218.96,218.92,13.78069096]
[1736186426569,2.28,218.96,218.93,13.78069096]
[1736186429261,2.28,218.96,218.81,7.17678529]
[1736186429262,13.78069096,218.94,218.81,7.17678529]
[1736186429454,13.78069096,218.88,218.82,13.78069096]
[1736186429662,2.28,218.88,218.83,13.78069096]
[1736186430367,2.28,218.88,218.87,13.78069096]
[1736186430548,22.27416498,218.94,218.87,13.78069096]
[1736186430753,2.28,218.93,218.9,13.78069096]
[1736186431163,2.28,218.93,218.89,13.78069096]
[1736186431363,16.06069096,218.93,218.87,13.78069096]
[1736186431566,13.78069096,218.92,218.86,33.78069096]
[1736186431872,13.78069096,218.91,218.84,33.78069096]
[1736186432368,13.78069096,218.91,218.85,13.78069096]
[1736186433463,13.78069096,218.92,218.85,13.78069096]
[1736186435064,16.06069096,218.93,218.86,13.78069096]
[1736186435266,2.28,218.93,218.87,13.78069096]
[1736186435452,16.06069096,218.93,218.84,20.0]
[1736186435652,13.78069096,218.92,218.86,13.78069096]
[1736186435960,2.28,218.93,218.89,13.78069096]
[1736186436262,2.28,218.93,218.88,13.78069096]
[1736186436472,2.28,218.93,218.85,0.12549]
[1736186436473,2.28,218.93,218.87,13.78069096]
[1736186436664,16.06069096,218.93,218.87,13.78069096]
[1736186437049,13.78069096,218.91,218.84,33.78069096]
[1736186437374,13.78069096,218.9,218.84,33.78069096]
[1736186437750,13.78069096,218.9,218.84,20.0]
[1736186438286,13.78069096,218.87,218.81,13.78069096]
[1736186438458,13.78069096,218.87,218.8,18.78069096]
[1736186439468,13.7001,218.92,218.8,18.78069096]
[1736186439469,13.78069096,218.85,218.8,5.0]
[1736186439669,2.28,218.84,218.8,5.0]
[1736186440256,13.78069096,218.83,218.8,5.0]
[1736186441071,16.06069096,218.84,218.8,5.0]
[1736186441452,13.78069096,218.83,218.8,5.0]
[1736186443378,16.06069096,218.84,218.8,5.0]
[1736186444581,2.28,218.84,218.8,18.78069096]
[1736186446590,2.28,218.84,218.8,5.0]
[1736186446892,2.28,218.84,218.8,18.78069096]
[1736186447081,2.28,218.85,218.83,13.78069096]
[1736186447276,2.28,218.85,218.84,13.78069096]
[1736186447674,2.28,218.85,218.82,13.78069096]
[1736186447869,13.78069096,218.84,218.8,5.0]
[1736186448986,16.06069096,218.85,218.8,5.0]
[1736186450063,2.28,218.85,218.8,18.78069096]
[1736186450265,2.28,218.84,218.83,13.78069096]
[1736186452884,2.28,218.84,218.82,13.78069096]
[1736186453878,2.28,218.84,218.81,13.78069096]
[1736186454285,2.28,218.84,218.82,13.78069096]
[1736186454801,2.28,218.84,218.8,18.78069096]
[1736186454969,2.28,218.84,218.8,5.0]
[1736186455366,16.06069096,218.84,218.8,5.0]
[1736186455577,13.78069096,218.83,218.8,5.0]
[1736186455979,13.78069096,218.81,218.8,5.0]
[1736186456179,37.55757496,218.81,218.8,5.0]
[1736186458671,23.776884,218.8,218.69,13.78069096]
[1736186458871,13.78069096,218.75,218.68,1.5783]
[1736186459088,16.06069096,218.74,218.68,1.5783]
[1736186459604,2.28,218.74,218.68,1.5783]
[1736186460692,2.28,218.74,218.71,13.78069096]
[1736186460895,2.28,218.74,218.73,13.78069096]
[1736186461269,2.28,218.74,218.71,13.78069096]
[1736186461597,2.28,218.74,218.7,13.78069096]
[1736186461768,2.28,218.74,218.73,13.78069096]
[1736186461974,19.1004,218.85,218.73,13.78069096]
[1736186462296,2.28,218.84,218.79,13.78069096]
[1736186462498,2.28,218.83,218.79,13.78069096]
[1736186462877,2.28,218.83,218.78,13.78069096]
[1736186463081,2.28,218.83,218.77,13.78069096]
[1736186463287,2.28,218.83,218.73,13.78069096]
[1736186463288,13.78069096,218.8,218.73,13.78069096]
[1736186463805,13.78069096,218.77,218.71,20.0]
[1736186464027,13.78069096,218.75,218.68,15.35899096]
[1736186464299,16.06069096,218.74,218.68,1.5783]
[1736186464479,16.06069096,218.73,218.68,1.5783]
[1736186464801,16.06069096,218.72,218.68,1.5783]
[1736186465003,2.28,218.71,218.68,1.5783]
[1736186465181,2.28,218.71,218.65,13.78069096]
[1736186465699,16.06069096,218.71,218.64,33.78069096]
[1736186465889,13.78069096,218.7,218.66,20.0]
[1736186466286,13.78069096,218.68,218.63,1.6369]
[1736186466487,13.78069096,218.66,218.56,1.5182]
[1736186466694,13.78069096,218.66,218.62,20.0]
[1736186466893,13.78069096,218.66,218.59,13.78069096]
[1736186467201,13.78069096,218.67,218.6,13.78069096]
[1736186468379,23.776884,218.7,218.58,13.78069096]
[1736186468380,13.78069096,218.65,218.58,13.78069096]
[1736186468579,13.78069096,218.66,218.59,13.78069096]
[1736186468804,13.78069096,218.67,218.6,13.78069096]
[1736186469687,13.78069096,218.66,218.59,13.78069096]
[1736186470289,13.78069096,218.64,218.57,13.78069096]
[1736186470486,16.06069096,218.63,218.56,15.29889096]
[1736186470726,2.28,218.62,218.56,15.29889096]
[1736186471008,2.28,218.62,218.57,20.0]
[1736186471213,2.28,218.62,218.58,13.78069096]
[1736186471384,2.28,218.62,218.57,33.78069096]
[1736186471588,2.28,218.62,218.57,20.0]
[1736186472112,2.28,218.62,218.59,13.78069096]
[1736186472318,2.28,218.62,218.61,13.78069096]
[1736186473290,2.28,218.62,218.6,13.78069096]
[1736186473487,2.28,218.62,218.61,13.78069096]
[1736186473703,2.28,218.66,218.61,13.78069096]
[1736186473918,2.28,218.69,218.65,13.78069096]
[1736186474223,2.28,218.69,218.68,13.78069096]
[1736186474529,2.28,218.69,218.66,13.78069096]
[1736186474726,2.28,218.69,218.64,13.78069096]
[1736186474931,2.28,218.69,218.65,13.78069096]
[1736186475845,2.28,218.69,218.64,13.78069096]
[1736186476311,2.28,218.69,218.65,13.78069096]
[1736186476514,2.28,218.69,218.64,13.78069096]
[1736186476688,2.28,218.69,218.63,13.78069096]
[1736186476890,16.06069096,218.69,218.62,13.78069096]
[1736186477911,16.06069096,218.69,218.63,13.78069096]
[1736186478412,2.28,218.69,218.63,13.78069096]
[1736186479012,16.06069096,218.69,218.63,13.78069096]
[1736186480232,16.06069096,218.69,218.57,13.90618096]
[1736186480233,13.78069096,218.68,218.62,13.78069096]
[1736186480529,13.78069096,218.67,218.6,13.78069096]
[1736186480709,13.78069096,218.64,218.58,13.78069096]
[1736186481241,13.78069096,218.63,218.58,20.0]
[1736186481445,13.78069096,218.62,218.56,15.29889096]
[1736186481650,2.28,218.61,218.56,15.29889096]
[1736186482341,2.28,218.61,218.56,1.5182]
[1736186482520,16.06069096,218.61,218.56,1.5182]
[1736186482726,13.78069096,218.6,218.56,1.5182]
[1736186484849,13.78069096,218.59,218.53,13.78069096]
[1736186485053,2.28,218.61,218.51,1.5262]
[1736186485054,13.78069096,218.57,218.51,1.5262]
[1736186485237,13.78069096,218.56,218.51,1.5262]
[1736186485612,13.78069096,218.56,218.53,20.0]
[1736186486225,13.78069096,218.6,218.53,13.78069096]
[1736186486813,13.78069096,218.59,218.52,13.78069096]
[1736186487347,13.78069096,218.58,218.52,13.78069096]
[1736186487866,13.78069096,218.58,218.51,13.78069096]
[1736186488070,13.78069096,218.57,218.51,13.78069096]
[1736186488870,13.78069096,218.56,218.5,33.78069096]
[1736186489071,13.78069096,218.57,218.5,33.78069096]
[1736186489269,13.78069096,218.57,218.51,13.78069096]
[1736186489576,13.78069096,218.58,218.51,13.78069096]
[1736186490964,13.78069096,218.58,218.52,13.78069096]
[1736186491135,13.78069096,218.58,218.51,13.78069096]
[1736186491335,13.78069096,218.57,218.5,33.78069096]
[1736186491549,13.78069096,218.56,218.49,13.78069096]
[1736186491983,13.78069096,218.55,218.52,20.0]
[1736186493360,13.78069096,218.55,218.51,20.0]
[1736186493657,2.28,218.54,218.52,13.78069096]
[1736186493959,2.28,218.54,218.5,13.78069096]
[1736186494761,2.28,218.54,218.52,13.78069096]
[1736186494946,2.28,218.54,218.51,13.78069096]
[1736186495345,2.28,218.54,218.49,33.78069096]
[1736186495548,2.28,218.54,218.51,20.0]
[1736186495761,13.78069096,218.53,218.46,15.44239096]
[1736186495961,13.78069096,218.49,218.38,11.4474]
[1736186496262,13.78069096,218.47,218.41,13.78069096]
[1736186496462,16.06069096,218.46,218.39,13.78069096]
[1736186496662,13.78069096,218.44,218.38,13.78069096]
[1736186496853,16.06069096,218.43,218.36,15.42019096]
[1736186497051,16.06069096,218.42,218.36,1.6395]
[1736186497259,16.06069096,218.41,218.35,13.78069096]
[1736186497464,2.28,218.4,218.35,13.78069096]
[1736186498267,2.28,218.4,218.34,13.78069096]
[1736186499755,13.78069096,218.39,218.33,33.78069096]
[1736186500472,2.28,218.4,218.35,13.78069096]
[1736186501254,2.28,218.4,218.38,13.78069096]
[1736186502070,13.78069096,218.46,218.39,13.78069096]
[1736186502393,2.28,218.45,218.42,13.78069096]
[1736186502764,2.28,218.45,218.41,13.78069096]
[1736186502951,13.78069096,218.44,218.38,33.78069096]
[1736186503459,13.78069096,218.44,218.38,20.0]
[1736186503666,13.78069096,218.43,218.36,13.78069096]
[1736186503863,13.78069096,218.41,218.34,13.78069096]
[1736186504093,13.78069096,218.4,218.33,13.78069096]
[1736186504404,13.78069096,218.4,218.36,20.0]
[1736186506365,13.78069096,218.37,218.3,13.78069096]
[1736186506576,13.78069096,218.37,218.26,1.6194]
[1736186506577,13.78069096,218.35,218.28,13.78069096]
[1736186506760,2.28,218.34,218.28,13.78069096]
[1736186507102,13.78069096,218.33,218.27,13.78069096]
[1736186507380,2.28,218.34,218.24,13.78069096]
[1736186507381,13.78069096,218.32,218.24,13.78069096]
[1736186507551,13.78069096,218.29,218.23,13.78069096]
[1736186507756,2.28,218.34,218.22,1.82645525]
[1736186507757,13.78069096,218.28,218.22,13.78069096]
[1736186507977,13.78069096,218.28,218.21,13.78069096]
[1736186508290,13.78069096,218.27,218.2,13.78069096]
[1736186508573,2.28,218.26,218.2,13.78069096]
[1736186508768,16.06069096,218.26,218.2,13.78069096]
[1736186509275,16.06069096,218.26,218.19,13.78069096]
[1736186509463,13.78069096,218.25,218.18,13.78069096]
[1736186509662,16.06069096,218.26,218.19,13.78069096]
[1736186510066,13.78069096,218.25,218.19,13.78069096]
[1736186510556,13.78069096,218.24,218.17,13.78069096]
[1736186510756,13.78069096,218.23,218.17,33.78069096]
[1736186511078,13.78069096,218.24,218.17,33.78069096]
[1736186511269,2.28,218.26,218.2,13.78069096]
[1736186511761,2.28,218.26,218.22,13.78069096]
[1736186512280,2.28,218.26,218.21,13.78069096]
[1736186512878,22.33620012,218.33,218.28,20.0]
[1736186513054,2.28,218.42,218.32,13.78069096]
[1736186513055,16.06069096,218.42,218.32,13.78069096]
[1736186513393,2.28,218.42,218.36,13.78069096]
[1736186514079,16.06069096,218.42,218.35,13.78069096]
[1736186514472,2.28,218.42,218.36,13.78069096]
[1736186514658,13.78069096,218.45,218.38,13.78069096]
[1736186514866,2.28,218.44,218.4,13.78069096]
[1736186515067,2.28,218.44,218.39,22.14383732]
[1736186517971,2.28,218.44,218.38,22.14383732]
[1736186518288,22.14383732,218.41,218.35,22.14383732]
[1736186518479,22.14383732,218.41,218.34,22.14383732]
[1736186519086,22.14383732,218.4,218.33,22.14383732]
[1736186519780,22.14383732,218.39,218.32,22.14383732]
[1736186519983,22.14383732,218.36,218.29,22.14383732]
[1736186520168,2.28,218.35,218.31,22.14383732]
[1736186520369,2.28,218.35,218.32,22.14383732]
[1736186521465,2.28,218.35,218.31,22.14383732]
[1736186521664,2.28,218.35,218.32,22.14383732]
[1736186521897,2.28,218.35,218.34,22.14383732]
[1736186522502,2.28,218.35,218.3,20.0]
[1736186522687,24.42383732,218.35,218.3,20.0]
[1736186522882,22.14383732,218.34,218.3,20.0]
[1736186523078,24.42383732,218.35,218.31,20.0]
[1736186523291,22.14383732,218.32,218.23,11.4555]
[1736186523486,22.14383732,218.28,218.21,22.14383732]
[1736186523811,22.14383732,218.26,218.19,33.60133732]
[1736186523971,24.42383732,218.26,218.19,22.14383732]
[1736186524799,24.42383732,218.26,218.16,1.5741]
[1736186524800,2.28,218.26,218.21,22.14383732]
[1736186525094,2.28,218.26,218.23,22.14383732]
[1736186525294,2.28,218.26,218.22,22.14383732]
[1736186525494,2.28,218.26,218.21,22.14383732]
[1736186525998,22.14383732,218.23,218.16,23.71793732]
[1736186526199,22.14383732,218.24,218.17,22.14383732]
[1736186526770,22.14383732,218.24,218.16,22.14383732]
[1736186526997,22.14383732,218.21,218.15,22.14383732]
[1736186527201,22.14383732,218.21,218.14,22.14383732]
[1736186527405,22.14383732,218.19,218.11,1.5802]
[1736186527579,2.28,218.18,218.13,22.14383732]
[1736186527778,2.28,218.18,218.16,20.0]
[1736186528175,2.28,218.18,218.15,22.14383732]
[1736186528501,2.28,218.18,218.17,22.14383732]
[1736186528668,2.28,218.18,218.14,22.14383732]
[1736186528875,2.28,218.18,218.13,22.14383732]
[1736186530077,24.42383732,218.18,218.11,22.14383732]
[1736186530275,22.14383732,218.17,218.1,22.14383732]
[1736186530498,22.14383732,218.14,218.08,22.14383732]
[1736186530699,2.28,218.18,218.06,22.14383732]
[1736186530914,22.14383732,218.13,218.06,22.14383732]
[1736186531202,22.14383732,218.14,218.07,22.14383732]
[1736186531378,22.14383732,218.13,218.07,22.14383732]
[1736186532871,22.14383732,218.14,218.07,22.14383732]
[1736186533185,2.28,218.16,218.13,22.14383732]
[1736186533394,22.14383732,218.22,218.15,22.14383732]
[1736186533698,2.28,218.21,218.17,22.14383732]
[1736186533888,2.28,218.2,218.17,22.14383732]
[1736186534387,2.28,218.2,218.15,22.14383732]
[1736186534588,24.42383732,218.2,218.13,22.14383732]
[1736186534789,22.14383732,218.19,218.12,22.14383732]
[1736186534978,22.14383732,218.17,218.1,22.14383732]
[1736186535180,23.776884,218.19,218.07,22.14383732]
[1736186535390,22.14383732,218.13,218.07,22.14383732]
[1736186535606,2.28,218.12,218.07,22.14383732]
[1736186535895,2.28,218.12,218.06,22.14383732]
[1736186536087,2.28,218.12,218.07,22.14383732]
[1736186536275,2.28,218.12,218.06,22.14383732]
[1736186536687,2.28,218.12,218.07,22.14383732]
[1736186536884,2.28,218.12,218.09,22.14383732]
[1736186537093,2.28,218.12,218.08,22.14383732]
[1736186537300,2.28,218.12,218.07,22.14383732]
[1736186537505,2.28,218.12,218.09,22.14383732]
[1736186538105,2.28,218.12,218.08,22.14383732]
[1736186538288,2.28,218.12,218.09,22.14383732]
[1736186538803,2.28,218.12,218.08,22.14383732]
[1736186538977,24.42383732,218.12,218.05,22.14383732]
[1736186539592,2.28,218.12,218.06,22.14383732]
[1736186540189,2.28,218.12,218.07,22.14383732]
[1736186540395,2.28,218.12,218.06,22.14383732]
[1736186540590,2.28,218.12,218.07,22.14383732]
[1736186540911,2.28,218.12,218.08,22.14383732]
[1736186541408,22.14383732,218.17,218.1,22.14383732]
[1736186541613,2.28,218.13,218.08,20.12549]
[1736186541788,2.28,218.17,218.08,20.81301676]
[1736186541982,11.4542,218.27,218.16,22.14383732]
[1736186542201,2.28,218.26,218.19,22.14383732]
[1736186542404,22.28,218.26,218.14,20.0]
[1736186542606,22.14383732,218.24,218.17,22.14383732]
[1736186543107,22.28,218.26,218.19,22.14383732]
[1736186543108,24.42383732,218.26,218.19,22.14383732]
[1736186543479,42.14383732,218.26,218.19,22.14383732]
[1736186543685,24.42383732,218.25,218.18,22.14383732]
[1736186543896,22.14383732,218.25,218.18,22.14383732]
[1736186544097,2.28,218.25,218.19,22.14383732]
[1736186544487,24.42383732,218.25,218.18,22.14383732]
[1736186544996,2.28,218.25,218.19,22.14383732]
[1736186545606,2.28,218.25,218.15,0.12549]
[1736186545607,22.14383732,218.29,218.22,22.14383732]
[1736186545807,2.28,218.28,218.24,22.14383732]
[1736186546009,22.14383732,218.32,218.24,22.14383732]
[1736186546184,2.28,218.33,218.28,22.14383732]
[1736186546381,2.28,218.33,218.29,22.14383732]
[1736186546586,22.14383732,218.39,218.31,22.14383732]
[1736186546782,2.28,218.38,218.32,22.14383732]
[1736186547011,2.28,218.38,218.31,22.14383732]
[1736186547316,22.14383732,218.37,218.3,22.14383732]
[1736186547514,2.28,218.38,218.32,22.14383732]
[1736186547989,24.42383732,218.38,218.31,22.14383732]
[1736186548814,11.4447,218.45,218.35,22.14383732]
[1736186548983,2.28,218.42,218.37,22.14383732]
[1736186549807,2.28,218.42,218.36,22.14383732]
[1736186549989,2.28,218.41,218.36,22.14383732]
[1736186550192,22.14383732,218.38,218.25,1.5818]
[1736186550383,22.14383732,218.34,218.27,22.14383732]
[1736186550586,22.14383732,218.34,218.27,42.14383732]
[1736186551015,22.14383732,218.37,218.3,22.14383732]
[1736186551310,2.28,218.41,218.35,22.14383732]
[1736186551616,2.28,218.41,218.37,22.14383732]
[1736186551919,2.28,218.41,218.27,0.81234101]
[1736186551920,2.28,218.41,218.36,22.14383732]
[1736186552597,20.0,218.46,218.37,22.14383732]
[1736186552914,22.14383732,218.44,218.37,22.14383732]
[1736186553317,2.28,218.45,218.39,22.14383732]
[1736186553815,24.42383732,218.45,218.38,22.14383732]
[1736186554114,22.14383732,218.42,218.35,22.14383732]
[1736186554419,2.28,218.45,218.37,22.14383732]
[1736186554616,22.14383732,218.43,218.36,22.14383732]
[1736186554821,22.14383732,218.43,218.35,22.14383732]
[1736186555035,22.14383732,218.4,218.33,22.14383732]
[1736186555328,22.14383732,218.41,218.34,22.14383732]
[1736186555628,2.28,218.45,218.37,22.14383732]
[1736186555789,22.14383732,218.44,218.37,22.14383732]
[1736186555993,2.28,218.43,218.37,22.14383732]
[1736186556222,2.28,218.43,218.39,22.14383732]
[1736186557209,2.28,218.43,218.4,22.14383732]
[1736186557416,22.14383732,218.48,218.42,22.14383732]
[1736186557417,2.28,218.48,218.42,22.14383732]
[1736186557619,22.14383732,218.5,218.42,22.14383732]
[1736186557820,22.14383732,218.46,218.39,22.14383732]
[1736186558741,22.14383732,218.46,218.38,42.14383732]
[1736186558935,2.28,218.48,218.39,20.0]
[1736186559234,2.28,218.47,218.42,22.14383732]
[1736186559442,22.14383732,218.49,218.42,22.14383732]
[1736186559725,24.42383732,218.48,218.41,22.14383732]
[1736186560030,2.28,218.48,218.42,22.14383732]
[1736186560234,2.28,218.47,218.43,22.14383732]
[1736186560397,2.28,218.47,218.44,22.14383732]
[1736186560597,2.28,218.47,218.43,22.14383732]
[1736186560825,2.28,218.47,218.44,22.14383732]
[1736186561111,22.14383732,218.51,218.44,22.14383732]
[1736186561311,24.42383732,218.5,218.43,22.14383732]
[1736186562112,2.28,218.5,218.44,22.14383732]
[1736186562316,2.28,218.49,218.46,22.14383732]
[1736186562702,2.28,218.49,218.47,22.14383732]
[1736186563036,22.14383732,218.55,218.48,22.14383732]
[1736186563196,2.32,218.53,218.42,0.6864513]
[1736186563397,22.14383732,218.48,218.38,1.6594]
[1736186563636,22.14383732,218.47,218.4,22.14383732]
[1736186563834,22.14383732,218.48,218.41,22.14383732]
[1736186564203,22.14383732,218.47,218.4,42.14383732]
[1736186564504,22.14383732,218.48,218.41,22.14383732]
[1736186564703,22.14383732,218.5,218.43,22.14383732]
[1736186564903,22.14383732,218.49,218.42,22.14383732]
[1736186565120,22.14383732,218.48,218.41,22.14383732]
[1736186565707,22.14383732,218.45,218.4,20.0]
[1736186565945,22.14383732,218.46,218.39,22.14383732]
[1736186566428,22.14383732,218.48,218.41,22.14383732]
[1736186566627,22.14383732,218.49,218.42,22.14383732]
[1736186566813,22.14383732,218.5,218.43,22.14383732]
[1736186567008,13.83439909,218.52,218.45,13.83439909]
[1736186567327,13.83439909,218.5,218.43,13.83439909]
[1736186567828,16.15439909,218.51,218.44,13.83439909]
[1736186568034,16.15439909,218.51,218.45,13.83439909]
[1736186568209,47.882,218.56,218.39,24.027864]
[1736186568210,13.83439909,218.54,218.47,13.83439909]
[1736186568536,2.32,218.53,218.49,13.83439909]
[1736186568924,2.32,218.53,218.48,13.83439909]
[1736186569120,2.32,218.53,218.48,22.12924594]
[1736186569804,22.12924594,218.56,218.49,22.12924594]
[1736186570010,2.32,218.54,218.49,22.12924594]
[1736186570206,22.12924594,218.58,218.52,22.12924594]
[1736186570525,2.32,218.57,218.52,22.12924594]
[1736186570910,2.32,218.57,218.51,22.12924594]
[1736186571233,24.44924594,218.57,218.5,22.12924594]
[1736186572142,22.12924594,218.54,218.47,22.12924594]
[1736186572302,22.12924594,218.52,218.46,22.12924594]
[1736186572509,22.12924594,218.53,218.47,22.12924594]
[1736186572808,22.12924594,218.54,218.47,22.12924594]
[1736186573010,22.12924594,218.55,218.48,22.12924594]
[1736186573533,22.12924594,218.53,218.46,42.12924594]
[1736186573923,22.12924594,218.52,218.46,42.12924594]
[1736186574433,22.12924594,218.54,218.47,22.12924594]
[1736186574633,22.12924594,218.53,218.46,22.12924594]
[1736186574848,13.7584,218.57,218.46,20.0]
[1736186574849,22.12924594,218.55,218.46,20.0]
[1736186575008,2.32,218.57,218.52,22.12924594]
[1736186576033,2.32,218.57,218.51,22.12924594]
[1736186576215,2.32,218.57,218.52,22.12924594]
[1736186576418,2.32,218.57,218.53,22.12924594]
[1736186576722,2.32,218.59,218.53,22.12924594]
[1736186577330,2.32,218.59,218.54,22.12924594]
[1736186577518,2.32,218.6,218.54,22.12924594]
[1736186577716,33.56394594,218.64,218.57,22.12924594]
[1736186577921,2.32,218.61,218.57,22.12924594]
[1736186578439,2.32,218.61,218.56,22.12924594]
[1736186578756,2.32,218.61,218.55,22.12924594]
[1736186578917,22.12924594,218.58,218.52,42.12924594]
[1736186579443,22.12924594,218.6,218.54,22.12924594]
[1736186579737,2.32,218.61,218.55,22.12924594]
[1736186580548,2.32,218.63,218.57,22.12924594]
[1736186580731,22.12924594,218.62,218.55,22.12924594]
[1736186580973,22.12924594,218.61,218.54,22.12924594]
[1736186581128,22.12924594,218.62,218.55,22.12924594]
[1736186581330,24.44924594,218.63,218.56,22.12924594]
[1736186581754,22.12924594,218.62,218.55,22.12924594]
[1736186582615,22.12924594,218.59,218.53,20.0]
[1736186582837,22.12924594,218.58,218.51,22.12924594]
[1736186583368,22.12924594,218.57,218.5,22.12924594]
[1736186583725,22.12924594,218.55,218.49,22.12924594]
[1736186583912,2.32,218.55,218.5,22.12924594]
[1736186584237,2.32,218.55,218.51,22.12924594]
[1736186584738,22.12924594,218.61,218.54,22.12924594]
[1736186584953,22.12924594,218.61,218.48,0.12549]
[1736186584954,22.12924594,218.65,218.58,22.12924594]
[1736186585157,2.32,218.65,218.59,22.12924594]
[1736186585513,24.44924594,218.65,218.58,22.12924594]
[1736186585984,11.4301,218.72,218.61,22.12924594]
[1736186586120,24.44924594,218.68,218.61,22.12924594]
[1736186586325,22.12924594,218.67,218.61,22.12924594]
[1736186586624,22.12924594,218.63,218.57,22.12924594]
[1736186586840,22.12924594,218.64,218.57,22.12924594]
[1736186587055,22.12924594,218.63,218.57,22.12924594]
[1736186587230,13.7525,218.68,218.54,23.75464594]
[1736186587231,22.12924594,218.61,218.54,23.75464594]
[1736186587635,2.32,218.6,218.54,23.75464594]
[1736186587948,2.32,218.6,218.56,22.12924594]
[1736186588145,2.32,218.6,218.55,42.12924594]
[1736186588346,2.32,218.6,218.56,22.12924594]
[1736186589250,24.44924594,218.66,218.59,22.12924594]
[1736186589460,2.32,218.66,218.6,22.12924594]
[1736186589645,22.12924594,218.65,218.59,22.12924594]
[1736186589956,22.12924594,218.65,218.58,22.12924594]
[1736186592133,13.82399404,218.54,218.49,1.6092]
[1736186592343,16.14399404,218.55,218.49,1.6092]
[1736186592862,2.32,218.55,218.5,13.82399404]
[1736186593019,2.32,218.55,218.52,13.82399404]
[1736186593444,2.32,218.55,218.5,33.82399404]
[1736186593628,13.82399404,218.57,218.51,13.82399404]
[1736186593832,2.3,218.55,218.52,13.82399404]
[1736186594039,2.3,218.55,218.54,13.82399404]
[1736186594644,2.3,218.55,218.52,13.82399404]
[1736186594835,2.3,218.55,218.54,13.82399404]
[1736186595241,2.3,218.61,218.54,13.82399404]
[1736186595443,2.3,218.6,218.56,13.82399404]
[1736186596247,2.3,218.6,218.58,13.82399404]
[1736186596447,2.3,218.6,218.59,13.82399404]